[Event "Championnat du monde jeunes U12F"]
[Date "2024.11.19"]
[White "Ahmed Mohamed, Zakaa"]
[Black "Abylaykyzy, Bibisara"]
[WhiteElo "1866"]
[BlackElo "1694"]
[Round "5.19"]
[Result "0-1"]
[TimeControl "5400+30"]

1. e4 {[%clk 1:30:58]} 1... c5 {[%clk 1:30:53]} 2. Nc3 {[%clk 1:31:20]} 2... Nc6
{[%clk 1:31:19]} 3. f4 {[%clk 1:31:38]} 3... g6 {[%clk 1:31:07]} 4. Nf3 {[%clk
1:31:59]} 4... Bg7 {[%clk 1:31:33]} 5. Bc4 {[%clk 1:32:22]} 5... e6 {[%clk
1:31:54]} 6. f5 {[%clk 1:21:10]} 6... Nge7 {[%clk 1:28:50]} 7. fxe6 {[%clk
1:21:31]} 7... dxe6 {[%clk 1:28:55]} 8. O-O {[%clk 1:21:46]} 8... O-O {[%clk
1:29:08]} 9. d3 {[%clk 1:22:06]} 9... a6 {[%clk 1:28:32]} 10. Qe1 {[%clk
1:15:19]} 10... Na5 {[%clk 1:26:20]} 11. Bb3 {[%clk 1:15:00]} 11... Nxb3 {[%clk
1:26:46]} 12. axb3 {[%clk 1:15:22]} 12... Nc6 {[%clk 1:26:46]} 13. Be3 {[%clk
1:11:05]} 13... b6 {[%clk 1:26:21]} 14. Qg3 {[%clk 1:07:36]} 14... Bb7 {[%clk
1:24:09]} 15. Bf4 {[%clk 1:00:55]} 15... e5 {[%clk 1:17:08]} 16. Bg5 {[%clk
0:59:28]} 16... f6 {[%clk 1:15:56]} 17. Bd2 {[%clk 0:54:46]} 17... Nd4 {[%clk
1:13:32]} 18. Nxd4 {[%clk 0:51:31]} 18... cxd4 {[%clk 1:13:47]} 19. Ne2 {[%clk
0:51:50]} 19... Rc8 {[%clk 1:14:13]} 20. Rac1 {[%clk 0:52:09]} 20... f5 {[%clk
1:09:48]} 21. exf5 {[%clk 0:49:00]} 21... gxf5 {[%clk 1:10:09]} 22. Bg5 {[%clk
0:42:22]} 22... Qd6 {[%clk 1:08:09]} 23. Qh4 {[%clk 0:39:10]} 23... Qg6 {[%clk
1:07:33]} 24. Rf2 {[%clk 0:30:32]} 24... f4 {[%clk 0:47:08]} 25. Be7 {[%clk
0:22:55]} 25... Rf7 {[%clk 0:45:37]} 26. Qg5 {[%clk 0:22:10]} 26... Bh6 {[%clk
0:41:48]} 27. Qxe5 {[%clk 0:04:33]} 27... f3 {[%clk 0:40:57]} 28. Nxd4 {[%clk
0:02:45]} 28... Bxc1 {[%clk 0:40:03]} 29. Bb4 {[%clk 0:01:31]} 29... fxg2 {[%clk
0:38:14]} 30. Rxf7 {[%clk 0:01:37]} 30... Qxf7 {[%clk 0:37:51]} 31. Nf5 {[%clk
0:01:47]} 31... Qxf5 {[%clk 0:37:46]} 32. Qg3+ {[%clk 0:00:44]} 32... Kh8 {[%clk
0:37:32]} 33. Bc3+ {[%clk 0:00:58]} 33... Rxc3 {[%clk 0:37:58]} 34. Qb8+ {[%clk
0:01:06]} 34... Rc8 {[%clk 0:38:21]} 35. Qxb7 {[%clk 0:01:23]} 35... Qf1# 0-1

[Variant "Standard"]
[Site "Europe Echecs"]

[Event "Championnat du monde jeunes U12F"]
[Date "2024.11.19"]
[White "Jordan, Christina"]
[Black "Smirnova, Viktoria A"]
[WhiteElo "1803"]
[BlackElo "1658"]
[Round "5.20"]
[Result "1-0"]
[TimeControl "5400+30"]

1. e4 {[%clk 1:30:57]} 1... e6 {[%clk 1:30:54]} 2. d4 {[%clk 1:31:20]} 2... d5
{[%clk 1:31:19]} 3. Nc3 {[%clk 1:31:46]} 3... Bb4 {[%clk 1:31:41]} 4. Ne2 {[%clk
1:32:09]} 4... dxe4 {[%clk 1:31:36]} 5. a3 {[%clk 1:32:28]} 5... Bxc3+ {[%clk
1:31:58]} 6. Nxc3 {[%clk 1:32:52]} 6... Nc6 {[%clk 1:32:02]} 7. Bf4 {[%clk
1:33:16]} 7... Nf6 {[%clk 1:30:34]} 8. Bb5 {[%clk 1:33:31]} 8... Bd7 {[%clk
1:26:09]} 9. d5 {[%clk 1:33:17]} 9... exd5 {[%clk 1:24:21]} 10. Nxd5 {[%clk
1:33:38]} 10... Nxd5 {[%clk 1:23:05]} 11. Qxd5 {[%clk 1:33:56]} 11... O-O {[%clk
1:12:53]} 12. O-O-O {[%clk 1:33:23]} 12... Qf6 {[%clk 0:47:27]} 13. Be3 {[%clk
1:30:41]} 13... Bf5 {[%clk 0:44:08]} 14. Bxc6 {[%clk 1:28:42]} 14... bxc6 {[%clk
0:44:27]} 15. Qd4 {[%clk 1:28:14]} 15... Qe6 {[%clk 0:43:31]} 16. Kb1 {[%clk
1:21:23]} 16... a5 {[%clk 0:38:29]} 17. Bf4 {[%clk 1:18:44]} 17... Qe7 {[%clk
0:31:55]} 18. Qc3 {[%clk 1:16:50]} 18... Rfb8 {[%clk 0:30:49]} 19. Qxc6 {[%clk
1:16:14]} 19... h6 {[%clk 0:24:16]} 20. Qxc7 {[%clk 1:14:19]} 20... Qxc7 {[%clk
0:24:09]} 21. Bxc7 {[%clk 1:14:16]} 21... Rc8 {[%clk 0:24:36]} 22. Rd5 {[%clk
1:10:38]} 22... Rxc7 {[%clk 0:19:35]} 23. Rxf5 {[%clk 1:11:02]} 23... Rac8
{[%clk 0:19:44]} 24. c3 {[%clk 1:11:04]} 24... a4 {[%clk 0:19:04]} 25. Re5
{[%clk 1:10:38]} 25... Rb8 {[%clk 0:17:31]} 26. Kc2 {[%clk 1:10:27]} 26... Rcb7
{[%clk 0:16:42]} 27. Rb1 {[%clk 1:10:45]} 27... f5 {[%clk 0:15:49]} 28. Rxf5
{[%clk 1:11:05]} 28... g6 {[%clk 0:15:59]} 29. Rf4 {[%clk 1:10:39]} 29... Re7
{[%clk 0:15:06]} 30. Re1 {[%clk 1:06:08]} 30... Reb7 {[%clk 0:15:09]} 31. Rexe4
{[%clk 1:00:36]} 31... Rxb2+ {[%clk 0:15:02]} 32. Kd3 {[%clk 0:57:35]} 32...
Rd8+ {[%clk 0:13:49]} 33. Rd4 {[%clk 0:52:55]} 33... Re8 {[%clk 0:12:26]} 34.
Rxa4 {[%clk 0:52:46]} 34... Ree2 {[%clk 0:12:16]} 35. Ra8+ {[%clk 0:50:50]}
35... Kg7 {[%clk 0:12:23]} 36. Ra7+ {[%clk 0:47:58]} 36... Kg8 {[%clk 0:12:38]}
37. Rf6 {[%clk 0:47:52]} 37... Rbd2+ {[%clk 0:12:07]} 38. Kc4 {[%clk 0:48:15]}
38... Rxf2 {[%clk 0:10:54]} 39. Rxg6+ {[%clk 0:48:39]} 39... Kh8 {[%clk
0:09:58]} 40. Rxh6+ {[%clk 0:49:04]} 40... Kg8 {[%clk 0:10:24]} 41. Rb6 {[%clk
0:46:44]} 41... Rf4+ {[%clk 0:10:11]} 42. Kb3 {[%clk 0:47:07]} 42... Rxg2 {[%clk
0:09:50]} 43. Rb8+ {[%clk 0:47:24]} 43... Rf8 {[%clk 0:10:15]} 44. Rxf8+ {[%clk
0:47:51]} 44... Kxf8 {[%clk 0:10:41]} 45. h4 {[%clk 0:48:04]} 45... Rh2 {[%clk
0:11:05]} 46. Rh7 {[%clk 0:48:25]} 46... Ke8 {[%clk 0:11:30]} 47. a4 {[%clk
0:48:47]} 47... Kd8 {[%clk 0:11:53]} 48. a5 {[%clk 0:49:12]} 48... Kc8 {[%clk
0:12:18]} 49. h5 {[%clk 0:48:43]} 49... Kb8 {[%clk 0:12:42]} 50. h6 {[%clk
0:48:11]} 50... Ka8 {[%clk 0:13:07]} 51. Kb4 {[%clk 0:48:16]} 51... Rh4+ {[%clk
0:13:11]} 52. Kc5 {[%clk 0:48:34]} 52... Rh5+ {[%clk 0:13:13]} 53. Kb6 {[%clk
0:48:58]} 1-0

[Variant "Standard"]
[Site "Europe Echecs"]

[Event "Championnat du monde jeunes U12F"]
[Date "2024.11.19"]
[White "Jacome Revelo, Daniela Alexandra"]
[Black "Bogomolnikova, Zlata"]
[WhiteElo "1764"]
[BlackElo "1628"]
[Round "5.21"]
[Result "1/2-1/2"]
[TimeControl "5400+30"]

1. e4 {[%clk 1:30:56]} 1... c5 {[%clk 1:30:56]} 2. Nf3 {[%clk 1:31:15]} 2... d6
{[%clk 1:31:07]} 3. d4 {[%clk 1:31:22]} 3... cxd4 {[%clk 1:31:26]} 4. Nxd4
{[%clk 1:31:28]} 4... Nf6 {[%clk 1:29:44]} 5. Nc3 {[%clk 1:30:33]} 5... a6
{[%clk 1:30:03]} 6. Be2 {[%clk 1:28:46]} 6... e5 {[%clk 1:27:41]} 7. Nb3 {[%clk
1:24:26]} 7... Be6 {[%clk 1:27:05]} 8. Be3 {[%clk 1:22:01]} 8... Be7 {[%clk
1:26:33]} 9. f3 {[%clk 1:19:14]} 9... Nbd7 {[%clk 1:24:37]} 10. Qd2 {[%clk
1:15:46]} 10... b5 {[%clk 1:24:42]} 11. Nd5 {[%clk 1:11:45]} 11... Rc8 {[%clk
1:18:48]} 12. Na5 {[%clk 1:07:47]} 12... Bxd5 {[%clk 1:17:02]} 13. exd5 {[%clk
1:07:41]} 13... Qc7 {[%clk 1:16:47]} 14. Rc1 {[%clk 1:04:18]} 14... Nxd5 {[%clk
1:15:48]} 15. Qxd5 {[%clk 1:00:03]} 15... Qxa5+ {[%clk 1:15:54]} 16. c3 {[%clk
1:00:07]} 16... O-O {[%clk 1:15:29]} 17. O-O {[%clk 0:57:03]} 17... Nf6 {[%clk
1:15:39]} 18. Qd3 {[%clk 0:52:58]} 18... Rc6 {[%clk 1:12:38]} 19. a3 {[%clk
0:52:12]} 19... Rfc8 {[%clk 1:12:40]} 20. Kh1 {[%clk 0:49:47]} 20... Qc7 {[%clk
1:10:45]} 21. g4 {[%clk 0:45:31]} 21... Nd7 {[%clk 1:06:03]} 22. f4 {[%clk
0:42:27]} 22... Nc5 {[%clk 1:03:06]} 23. Qd5 {[%clk 0:39:07]} 23... exf4 {[%clk
1:00:23]} 24. Rxf4 {[%clk 0:36:14]} 24... Bf6 {[%clk 0:53:35]} 25. Rcf1 {[%clk
0:31:55]} 25... Qe7 {[%clk 0:44:59]} 26. R4f3 {[%clk 0:23:14]} 1/2-1/2

[Variant "Standard"]
[Site "Europe Echecs"]

[Event "Championnat du monde jeunes U12F"]
[Date "2024.11.19"]
[White "Sri Darshini T"]
[Black "Ivaschenko, Anna"]
[WhiteElo "1681"]
[BlackElo "1732"]
[Round "5.22"]
[Result "1/2-1/2"]
[TimeControl "5400+30"]

1. d4 {[%clk 1:30:59]} 1... Nf6 {[%clk 1:30:56]} 2. c4 {[%clk 1:31:24]} 2... e6
{[%clk 1:31:22]} 3. Nc3 {[%clk 1:31:51]} 3... Bb4 {[%clk 1:31:48]} 4. e3 {[%clk
1:32:18]} 4... O-O {[%clk 1:32:10]} 5. Bd3 {[%clk 1:32:44]} 5... Re8 {[%clk
1:31:31]} 6. Bd2 {[%clk 1:32:48]} 6... d6 {[%clk 1:19:28]} 7. a3 {[%clk
1:32:09]} 7... Bxc3 {[%clk 1:19:48]} 8. Bxc3 {[%clk 1:32:10]} 8... Nbd7 {[%clk
1:15:33]} 9. Ne2 {[%clk 1:30:28]} 9... e5 {[%clk 1:12:27]} 10. O-O {[%clk
1:29:51]} 10... b6 {[%clk 1:04:40]} 11. Ng3 {[%clk 1:25:06]} 11... e4 {[%clk
1:00:28]} 12. Be2 {[%clk 1:22:42]} 12... Bb7 {[%clk 0:58:21]} 13. Qc2 {[%clk
1:18:17]} 13... Qe7 {[%clk 0:46:47]} 14. b4 {[%clk 1:11:21]} 14... g6 {[%clk
0:42:15]} 15. Rfc1 {[%clk 1:00:54]} 15... h5 {[%clk 0:36:40]} 16. h3 {[%clk
0:59:56]} 16... c6 {[%clk 0:26:41]} 17. c5 {[%clk 0:55:42]} 17... d5 {[%clk
0:24:08]} 18. b5 {[%clk 0:51:35]} 18... Rec8 {[%clk 0:23:17]} 19. Bb4 {[%clk
0:48:03]} 19... bxc5 {[%clk 0:20:27]} 20. dxc5 {[%clk 0:48:09]} 20... a5 {[%clk
0:19:38]} 21. Bc3 {[%clk 0:43:59]} 21... Qxc5 {[%clk 0:17:47]} 22. Qb2 {[%clk
0:43:30]} 22... Qd6 {[%clk 0:16:38]} 23. bxc6 {[%clk 0:41:49]} 23... Bxc6 {[%clk
0:16:37]} 24. Qd2 {[%clk 0:41:36]} 24... a4 {[%clk 0:12:59]} 25. Qd4 {[%clk
0:41:25]} 25... Qe6 {[%clk 0:12:03]} 26. Bxh5 {[%clk 0:38:41]} 26... gxh5 {[%clk
0:09:13]} 27. Nxh5 {[%clk 0:38:59]} 27... Bb5 {[%clk 0:07:19]} 28. Nxf6+ {[%clk
0:38:39]} 28... Nxf6 {[%clk 0:07:42]} 29. Qxf6 {[%clk 0:39:00]} 29... Qxf6
{[%clk 0:08:05]} 30. Bxf6 {[%clk 0:39:23]} 30... Bc4 {[%clk 0:08:03]} 31. Rab1
{[%clk 0:32:50]} 31... Rcb8 {[%clk 0:06:32]} 32. Be5 {[%clk 0:30:32]} 32... Rb3
{[%clk 0:06:03]} 33. Rxb3 {[%clk 0:26:24]} 33... axb3 {[%clk 0:06:22]} 34. Bb2
{[%clk 0:26:44]} 34... f5 {[%clk 0:05:23]} 35. Kh2 {[%clk 0:20:27]} 35... Kf7
{[%clk 0:05:07]} 36. f4 {[%clk 0:17:23]} 36... exf3 {[%clk 0:03:52]} 37. gxf3
{[%clk 0:17:50]} 37... Re8 {[%clk 0:03:55]} 38. Bd4 {[%clk 0:16:44]} 38... Ra8
{[%clk 0:02:30]} 39. Bb2 {[%clk 0:16:06]} 39... Re8 {[%clk 0:02:41]} 40. Bd4
{[%clk 0:16:20]} 40... Ra8 {[%clk 0:02:25]} 41. Ra1 {[%clk 0:12:44]} 41... Bd3
{[%clk 0:01:58]} 42. Bb2 {[%clk 0:13:04]} 42... Rc8 {[%clk 0:02:08]} 43. Rc1
{[%clk 0:13:21]} 43... Bc2 {[%clk 0:02:03]} 44. Kg3 {[%clk 0:12:59]} 44... Kg6
{[%clk 0:01:56]} 45. Kf2 {[%clk 0:08:24]} 1/2-1/2

[Variant "Standard"]
[Site "Europe Echecs"]

[Event "Championnat du monde jeunes U12F"]
[Date "2024.11.19"]
[White "Lukin, Yesenia"]
[Black "Stepankova, Linda"]
[WhiteElo "1732"]
[BlackElo "1624"]
[Round "5.23"]
[Result "0-1"]
[TimeControl "5400+30"]

1. d4 {[%clk 1:30:55]} 1... d5 {[%clk 1:30:40]} 2. Nf3 {[%clk 1:31:17]} 2... Nf6
{[%clk 1:30:50]} 3. g3 {[%clk 1:31:38]} 3... e6 {[%clk 1:28:32]} 4. Bg2 {[%clk
1:31:10]} 4... c5 {[%clk 1:25:41]} 5. c3 {[%clk 1:31:24]} 5... Bd6 {[%clk
1:23:20]} 6. O-O {[%clk 1:30:58]} 6... O-O {[%clk 1:21:50]} 7. Nbd2 {[%clk
1:28:57]} 7... Nc6 {[%clk 1:19:07]} 8. b3 {[%clk 1:25:55]} 8... b6 {[%clk
1:14:55]} 9. Bb2 {[%clk 1:21:17]} 9... Re8 {[%clk 1:11:48]} 10. c4 {[%clk
1:17:22]} 10... Nxd4 {[%clk 0:58:41]} 11. Nxd4 {[%clk 1:12:58]} 11... cxd4
{[%clk 0:58:20]} 12. cxd5 {[%clk 1:09:36]} 12... e5 {[%clk 0:46:40]} 13. e3
{[%clk 0:49:45]} 13... dxe3 {[%clk 0:34:48]} 14. fxe3 {[%clk 0:49:18]} 14... Ba6
{[%clk 0:26:24]} 15. Re1 {[%clk 0:33:21]} 15... Rc8 {[%clk 0:20:24]} 16. e4
{[%clk 0:27:58]} 16... Qd7 {[%clk 0:16:50]} 17. Rc1 {[%clk 0:20:02]} 17... Bc5+
{[%clk 0:14:05]} 18. Kh1 {[%clk 0:20:06]} 18... Ng4 {[%clk 0:09:27]} 19. Rxc5
{[%clk 0:10:43]} 19... Nf2+ {[%clk 0:08:37]} 20. Kg1 {[%clk 0:11:07]} 20... Nxd1
{[%clk 0:08:54]} 21. Rxc8 {[%clk 0:10:51]} 21... Qxc8 {[%clk 0:09:12]} 22. Rxd1
{[%clk 0:09:48]} 22... Qc2 {[%clk 0:09:24]} 23. Bf3 {[%clk 0:09:11]} 23... Qxb2
{[%clk 0:09:35]} 24. d6 {[%clk 0:09:25]} 24... Qd4+ {[%clk 0:09:37]} 25. Kg2
{[%clk 0:09:37]} 25... Qxd6 {[%clk 0:09:15]} 26. Nc4 {[%clk 0:08:56]} 26... Qc5
{[%clk 0:09:00]} 27. Rd5 {[%clk 0:08:38]} 27... Qb4 {[%clk 0:08:08]} 28. Nxe5
{[%clk 0:08:29]} 28... Bb7 {[%clk 0:07:26]} 29. Rd7 {[%clk 0:07:52]} 29... Bxe4
{[%clk 0:05:51]} 30. Nxf7 {[%clk 0:07:32]} 30... Bxf3+ {[%clk 0:05:58]} 31. Kxf3
{[%clk 0:07:59]} 31... Qe4+ {[%clk 0:05:49]} 32. Kf2 {[%clk 0:08:21]} 32... Qe3+
{[%clk 0:06:15]} 33. Kg2 {[%clk 0:08:44]} 33... Qe4+ {[%clk 0:05:34]} 34. Kg1
{[%clk 0:08:56]} 34... Qe1+ {[%clk 0:05:16]} 35. Kg2 {[%clk 0:09:20]} 35... Re2+
{[%clk 0:05:25]} 36. Kf3 {[%clk 0:09:25]} 36... Qf2+ {[%clk 0:05:38]} 37. Kg4
{[%clk 0:09:46]} 37... Re4+ {[%clk 0:05:42]} 38. Kg5 {[%clk 0:09:39]} 38... Qf6+
{[%clk 0:05:36]} 39. Kh5 {[%clk 0:09:51]} 39... Qg6# {[%clk 0:05:48]} 0-1

[Variant "Standard"]
[Site "Europe Echecs"]

[Event "Championnat du monde jeunes U12F"]
[Date "2024.11.19"]
[White "Wang, Tianmu"]
[Black "Xu, Melissa"]
[WhiteElo "1640"]
[BlackElo "1731"]
[Round "5.24"]
[Result "0-1"]
[TimeControl "5400+30"]

1. e4 {[%clk 1:30:59]} 1... c5 {[%clk 1:30:49]} 2. Nf3 {[%clk 1:31:19]} 2... Nc6
{[%clk 1:31:12]} 3. d4 {[%clk 1:31:33]} 3... cxd4 {[%clk 1:30:59]} 4. Nxd4
{[%clk 1:31:49]} 4... e5 {[%clk 1:31:26]} 5. Nxc6 {[%clk 1:31:44]} 5... bxc6
{[%clk 1:31:46]} 6. Bc4 {[%clk 1:31:30]} 6... Nf6 {[%clk 1:31:08]} 7. Nc3 {[%clk
1:29:41]} 7... Be7 {[%clk 1:27:29]} 8. O-O {[%clk 1:29:01]} 8... O-O {[%clk
1:25:41]} 9. Re1 {[%clk 1:26:09]} 9... d6 {[%clk 1:24:26]} 10. Qf3 {[%clk
1:19:56]} 10... Bd7 {[%clk 1:17:18]} 11. Bg5 {[%clk 1:11:07]} 11... h6 {[%clk
1:12:03]} 12. Bxf6 {[%clk 1:07:03]} 12... Bxf6 {[%clk 1:12:22]} 13. Rad1 {[%clk
1:06:58]} 13... Qc7 {[%clk 1:10:16]} 14. Qd3 {[%clk 1:05:48]} 14... Be7 {[%clk
1:07:55]} 15. Re3 {[%clk 0:59:46]} 15... Kh8 {[%clk 1:05:50]} 16. h3 {[%clk
0:53:56]} 16... f5 {[%clk 1:02:33]} 17. Bb3 {[%clk 0:48:30]} 17... fxe4 {[%clk
0:59:27]} 18. Nxe4 {[%clk 0:45:12]} 18... d5 {[%clk 0:57:07]} 19. Ng3 {[%clk
0:43:05]} 19... Bc5 {[%clk 0:48:00]} 20. Re2 {[%clk 0:40:45]} 20... Rf4 {[%clk
0:42:49]} 21. c3 {[%clk 0:33:49]} 21... Rf7 {[%clk 0:36:14]} 22. Qd2 {[%clk
0:29:09]} 22... Raf8 {[%clk 0:32:54]} 23. Rf1 {[%clk 0:26:49]} 23... Bc8 {[%clk
0:28:35]} 24. c4 {[%clk 0:25:50]} 24... Ba6 {[%clk 0:28:20]} 25. Qc2 {[%clk
0:24:07]} 25... Qb6 {[%clk 0:24:50]} 26. Nh1 {[%clk 0:20:59]} 26... e4 {[%clk
0:23:10]} 27. a3 {[%clk 0:15:31]} 27... Rf4 {[%clk 0:18:20]} 28. Ba2 Qc7 {[%clk
0:13:57]} 29. b4 {[%clk 0:12:20]} 29... Bd4 {[%clk 0:13:28]} 30. a4 {[%clk
0:10:42]} 30... Bxc4 {[%clk 0:11:31]} 31. Bxc4 {[%clk 0:10:46]} 31... dxc4
{[%clk 0:11:50]} 32. Qxc4 {[%clk 0:10:46]} 32... e3 {[%clk 0:11:49]} 33. Qc2
{[%clk 0:08:28]} 33... Be5 {[%clk 0:10:04]} 34. g3 {[%clk 0:06:21]} 34... Rxb4
{[%clk 0:09:28]} 35. Rxe3 {[%clk 0:05:53]} 35... Bd4 {[%clk 0:09:32]} 36. Rd3
{[%clk 0:04:27]} 36... Qb6 {[%clk 0:08:25]} 37. Rd2 {[%clk 0:02:56]} 37... Qa6
{[%clk 0:07:53]} 38. a5 {[%clk 0:02:21]} 38... c5 {[%clk 0:07:03]} 39. Qa2
{[%clk 0:01:55]} 39... Rb5 {[%clk 0:07:04]} 40. g4 {[%clk 0:01:32]} 40... Rxa5
{[%clk 0:07:18]} 41. Qc2 {[%clk 0:01:26]} 41... Qf6 {[%clk 0:06:34]} 42. Ng3
{[%clk 0:01:14]} 42... Qh4 {[%clk 0:06:37]} 43. Kh2 {[%clk 0:01:15]} 43... Ra3
{[%clk 0:06:20]} 44. Kg2 {[%clk 0:00:52]} 44... Rxf2+ {[%clk 0:05:50]} 45. Rfxf2
{[%clk 0:00:51]} 45... Rxg3+ {[%clk 0:06:00]} 46. Kf1 {[%clk 0:01:08]} 46...
Qxh3+ {[%clk 0:06:19]} 47. Ke1 {[%clk 0:00:50]} 47... Qh1+ {[%clk 0:06:31]} 48.
Rf1 {[%clk 0:00:59]} 48... Re3+ {[%clk 0:05:51]} 49. Re2 {[%clk 0:00:53]} 49...
Bc3+ {[%clk 0:04:55]} 50. Qxc3 {[%clk 0:00:36]} 50... Qxf1+ {[%clk 0:05:18]} 51.
Kxf1 {[%clk 0:00:51]} 51... Rxc3 {[%clk 0:05:44]} 52. Ra2 {[%clk 0:01:08]} 52...
Rf3+ {[%clk 0:05:55]} 53. Ke1 {[%clk 0:01:30]} 53... Rf7 {[%clk 0:06:16]} 54.
Ra4 {[%clk 0:01:50]} 54... Kh7 {[%clk 0:06:22]} 55. Rc4 {[%clk 0:02:07]} 55...
Rc7 {[%clk 0:06:49]} 56. Kf2 {[%clk 0:02:28]} 56... Kg6 {[%clk 0:07:14]} 57. Kg3
{[%clk 0:02:51]} 57... Kg5 {[%clk 0:07:21]} 58. Kf3 {[%clk 0:03:06]} 58... g6
{[%clk 0:07:14]} 59. Kg3 {[%clk 0:03:28]} 59... h5 {[%clk 0:07:24]} 60. gxh5
{[%clk 0:03:46]} 60... gxh5 {[%clk 0:07:49]} 61. Kh3 {[%clk 0:04:06]} 61... a6
{[%clk 0:07:32]} 62. Kg3 {[%clk 0:04:18]} 62... Kf5 {[%clk 0:06:54]} 63. Rh4
{[%clk 0:04:11]} 63... Ke5 {[%clk 0:06:47]} 64. Rxh5+ {[%clk 0:04:31]} 64... Kd4
{[%clk 0:07:07]} 65. Kf2 {[%clk 0:04:51]} 65... Rc6 {[%clk 0:06:45]} 66. Ke2
{[%clk 0:05:10]} 66... Kc3 {[%clk 0:07:08]} 67. Kd1 {[%clk 0:05:27]} 67... c4
{[%clk 0:07:07]} 68. Kc1 {[%clk 0:05:41]} 68... Kb3 {[%clk 0:07:30]} 69. Rh3+
{[%clk 0:05:55]} 69... c3 {[%clk 0:07:38]} 70. Rh5 {[%clk 0:05:48]} 70... Rg6
{[%clk 0:07:31]} 71. Rh1 {[%clk 0:06:04]} 71... Rg2 {[%clk 0:06:52]} 72. Kb1
{[%clk 0:06:10]} 72... Rb2+ {[%clk 0:07:04]} 73. Ka1 {[%clk 0:06:25]} 73... Ra2+
{[%clk 0:07:28]} 74. Kb1 {[%clk 0:06:46]} 74... c2+ {[%clk 0:07:55]} 75. Kc1
{[%clk 0:06:59]} 75... Ra1+ {[%clk 0:08:22]} 76. Kd2 {[%clk 0:07:19]} 76... Rxh1
{[%clk 0:08:47]} 77. Ke2 {[%clk 0:07:39]} 77... c1=Q {[%clk 0:09:10]} 78. Kf3
{[%clk 0:08:02]} 78... Qf1+ {[%clk 0:09:32]} 79. Ke4 {[%clk 0:08:26]} 79... Rh4+
{[%clk 0:09:49]} 80. Ke5 {[%clk 0:08:51]} 80... Qb5+ {[%clk 0:10:13]} 81. Kf6
{[%clk 0:09:12]} 81... Rh6+ {[%clk 0:10:35]} 82. Kg7 {[%clk 0:09:35]} 82... Qg5+
{[%clk 0:10:59]} 83. Kf7 {[%clk 0:09:56]} 83... Qf6+ {[%clk 0:11:25]} 84. Ke8
{[%clk 0:10:17]} 84... Rh8+ {[%clk 0:11:43]} 85. Kd7 {[%clk 0:10:40]} 85... Rd8+
{[%clk 0:12:01]} 86. Kc7 {[%clk 0:11:04]} 86... Qd6+ {[%clk 0:12:17]} 87. Kb7
{[%clk 0:11:31]} 87... Rb8+ {[%clk 0:12:41]} 88. Ka7 {[%clk 0:11:52]} 88... Qb6#
0-1

[Variant "Standard"]
[Site "Europe Echecs"]

[Event "Championnat du monde jeunes U12F"]
[Date "2024.11.19"]
[White "Ribreau, Anna"]
[Black "Huang, Lucia"]
[WhiteElo "1726"]
[BlackElo "1621"]
[Round "5.25"]
[Result "0-1"]
[TimeControl "5400+30"]

1. b3 {[%clk 1:29:24]} 1... e6 {[%clk 1:30:31]} 2. Bb2 {[%clk 1:29:19]} 2... Nf6
{[%clk 1:30:32]} 3. e3 {[%clk 1:28:47]} 3... Be7 {[%clk 1:29:35]} 4. f4 {[%clk
1:27:56]} 4... d6 {[%clk 1:25:05]} 5. Nf3 {[%clk 1:26:52]} 5... h6 {[%clk
1:24:52]} 6. Be2 {[%clk 1:25:56]} 6... Bd7 {[%clk 1:21:16]} 7. O-O {[%clk
1:25:53]} 7... O-O {[%clk 1:21:41]} 8. d3 {[%clk 1:25:34]} 8... Nd5 {[%clk
1:17:00]} 9. Qd2 {[%clk 1:22:55]} 9... f5 {[%clk 1:15:59]} 10. c4 {[%clk
1:21:28]} 10... Nf6 {[%clk 1:16:05]} 11. Nc3 {[%clk 1:20:52]} 11... Nc6 {[%clk
1:13:07]} 12. e4 {[%clk 1:18:54]} 12... a6 {[%clk 1:04:21]} 13. e5 {[%clk
1:17:55]} 13... dxe5 {[%clk 1:03:38]} 14. fxe5 {[%clk 1:16:18]} 14... Nh7 {[%clk
1:03:48]} 15. d4 {[%clk 1:15:36]} 15... Ng5 {[%clk 1:03:30]} 16. Rfe1 {[%clk
1:14:18]} 16... Ne4 {[%clk 0:55:17]} 17. Qd3 {[%clk 1:11:35]} 17... Bb4 {[%clk
0:49:30]} 18. d5 {[%clk 1:07:31]} 18... Ne7 {[%clk 0:45:10]} 19. Rac1 {[%clk
0:57:13]} 19... exd5 {[%clk 0:35:53]} 20. cxd5 {[%clk 0:54:45]} 20... Nxc3
{[%clk 0:35:52]} 21. Bxc3 {[%clk 0:55:01]} 21... Bxc3 {[%clk 0:33:48]} 22. Rxc3
{[%clk 0:54:09]} 22... Bb5 {[%clk 0:34:07]} 23. Qc2 {[%clk 0:53:59]} 23... Nxd5
24. Bxb5 {[%clk 0:53:42]} 24... Nxc3 {[%clk 0:31:59]} 25. Bc4+ {[%clk 0:54:02]}
25... Nd5 {[%clk 0:32:23]} 26. e6 {[%clk 0:51:17]} 26... Ne7 {[%clk 0:32:20]}
27. Rd1 {[%clk 0:50:28]} 27... Qe8 {[%clk 0:29:00]} 28. Rd7 {[%clk 0:50:17]}
28... b5 {[%clk 0:27:43]} 29. Bd3 {[%clk 0:50:11]} 29... c6 {[%clk 0:27:51]} 30.
Nd4 {[%clk 0:49:54]} 30... Rf6 {[%clk 0:24:20]} 31. Qc5 {[%clk 0:46:17]} 31...
Rxe6 {[%clk 0:23:25]} 32. Nxe6 {[%clk 0:39:54]} 32... Qxd7 {[%clk 0:23:48]} 33.
Qe5 {[%clk 0:39:51]} 33... Ng6 {[%clk 0:22:02]} 34. Qxf5 {[%clk 0:39:48]} 34...
Re8 {[%clk 0:19:56]} 35. Qxg6 {[%clk 0:39:17]} 35... Qxe6 {[%clk 0:20:16]} 36.
Qxe6+ {[%clk 0:38:03]} 36... Rxe6 {[%clk 0:20:39]} 37. a4 {[%clk 0:38:29]} 37...
Re3 {[%clk 0:21:00]} 38. Bc2 {[%clk 0:38:42]} 38... Rc3 {[%clk 0:21:10]} 39. Be4
{[%clk 0:38:50]} 39... bxa4 {[%clk 0:21:24]} 40. bxa4 {[%clk 0:39:03]} 40... Rc4
{[%clk 0:21:48]} 41. Bf3 {[%clk 0:39:12]} 41... Rxa4 {[%clk 0:22:10]} 42. Bxc6
{[%clk 0:39:37]} 42... Ra1+ {[%clk 0:22:25]} 43. Kf2 {[%clk 0:39:57]} 43... a5
{[%clk 0:22:44]} 44. Ke3 {[%clk 0:40:17]} 44... a4 {[%clk 0:23:02]} 45. Kd3
{[%clk 0:40:20]} 45... a3 {[%clk 0:23:07]} 46. Kc2 {[%clk 0:40:34]} 46... Kf8
{[%clk 0:23:20]} 47. Kb3 {[%clk 0:40:33]} 47... Ke7 {[%clk 0:23:17]} 48. Bf3
{[%clk 0:40:25]} 48... Kd6 {[%clk 0:23:27]} 49. Kb4 {[%clk 0:40:37]} 49... Ke5
{[%clk 0:23:31]} 50. Kc3 {[%clk 0:39:37]} 50... Rf1 {[%clk 0:23:39]} 0-1

[Variant "Standard"]
[Site "Europe Echecs"]